[Event "SixDays Budapest IM-A 09-2024"]
[Site "Budapest"]
[Date "2024.09.26"]
[Round "5.1"]
[White "Kao, Jamison Edrich"]
[Black "Bashylina, Luisa"]
[Result "0-1"]
[ECO "B91"]
[WhiteElo "2125"]
[BlackElo "2124"]
[Annotator "RC"]
[PlyCount "202"]
[EventDate "2024.09.24"]
[EventType "tourn"]
[EventCountry "HUN"]
[SourceTitle "playchess.com"]
[Source "ChessBase"]
[SourceQuality "1"]
[TimeControl "5400+30"]

1. e4 {[%emt 0:00:01]} c5 {[%emt 0:00:05]} 2. Nf3 {[%emt 0:00:02]} d6 {[%emt 0:00:03]} 3. d4 {[%emt 0:00:21]} cxd4 {[%emt 0:00:04]} 4. Nxd4 {[%emt 0:00:03]} Nf6 {[%emt 0:00:04]} 5. Nc3 {[%emt 0:00:04]} a6 {[%emt 0:00:02]} 6. g3 {[%emt 0:00:18]} e5 {[%emt 0:00:23]} 7. Nb3 {[%emt 0:00:08]} Be7 {[%emt 0:01:22]} 8. Bg2 {[%emt 0:00:05]} b5 {[%emt 0:02:53]} 9. O-O {[%emt 0:00:18]} O-O {[%emt 0:01:24]} 10. h3 {[%emt 0:02:07]} Be6 {[%emt 0:08:40]} 11. Nd5 {[%emt 0:01:30]} Nxd5 {[%emt 0:04:26]} 12. exd5 {[%emt 0:00:06]} Bc8 {[%emt 0:01:02]} 13. Bd2 {[%emt 0:10:31]} f5 {[%emt 0:04:31]} 14. Na5 {[%emt 0:01:40]} Bf6 {[%emt 0:03:05]} 15. c4 {[%emt 0:08:13]} e4 {[%emt 0:08:55]} 16. Qc2 {[%emt 0:00:51]} Nd7 {[%emt 0:06:49]} 17. Nc6 {[%emt 0:04:41]} Qe8 {[%emt 0:01:50]} 18. Bb4 {[%emt 0:04:05]} Be5 {[%emt 0:09:13]} 19. Rac1 {[%emt 0:01:31]} bxc4 {[%emt 0:03:41]} 20. Rfd1 {[%emt 0:12:59]} Rf6 {[%emt 0:07:03]} 21. Qxc4 {[%emt 0:08:39]} Bxb2 {[%emt 0:01:40]} 22. Rc2 {[%emt 0:04:54]} Be5 {[%emt 0:02:15]} 23. Rdc1 {[%emt 0:00:08]} Bb7 {[%emt 0:08:34]} 24. Qb3 {[%emt 0:20:00]} Qf7 {[%emt 0:03:55]} 25. Bxd6 {[%emt 0:02:36]} Bxc6 {[%emt 0:03:37]} 26. Bxe5 {[%emt 0:00:20]} Nxe5 {[%emt 0:05:30]} 27. dxc6 {[%emt 0:00:13]} Qxb3 {[%emt 0:00:54]} 28. axb3 {[%emt 0:00:05]} Nd3 {[%emt 0:01:14]} 29. c7 {[%emt 0:05:57]} Rc8 {[%emt 0:00:11]} 30. Rd1 {[%emt 0:02:11]} Rf7 {[%emt 0:04:38]} 31. f3 {[%emt 0:01:46]} Rfxc7 {[%emt 0:01:20]} 32. Rxc7 Rxc7 {[%emt 0:00:02]} 33. fxe4 {[%emt 0:01:23]} fxe4 {[%emt 0:00:43]} 34. Bxe4 {[%emt 0:00:06]} Ne5 {[%emt 0:00:31]} 35. Ra1 {[%emt 0:03:31]} Rc3 {[%emt 0:01:16]} 36. Kg2 {[%emt 0:01:24]} Kf8 {[%emt 0:01:29]} 37. Bd5 {[%emt 0:02:58]} Rc2+ {[%emt 0:00:42]} 38. Kg1 {[%emt 0:00:49]} Rc5 {[%emt 0:00:30]} 39. Bg2 {[%emt 0:01:36]} a5 {[%emt 0:00:11]} 40. Ra2 {[%emt 0:00:33]} h6 {[%emt 0:01:20]} 41. Kf2 {[%emt 0:00:22]} Nd3+ {[%emt 0:00:42]} 42. Ke3 {[%emt 0:00:22]} Nc1 {[%emt 0:00:26]} 43. Rb2 {[%emt 0:01:00]} Rb5 {[%emt 0:00:37]} 44. b4 {[%emt 0:01:17]} Rxb4 {[%emt 0:02:38]} 45. Rxb4 {[%emt 0:00:26]} axb4 {[%emt 0:00:42]} 46. Bf1 {[%emt 0:00:33]} Nb3 {[%emt 0:00:59]} 47. Kd3 {[%emt 0:00:17]} Ke7 {[%emt 0:00:15]} 48. Bg2 {[%emt 0:00:53]} Nc1+ {[%emt 0:00:56]} 49. Kc4 {[%emt 0:00:25]} Ne2 {[%emt 0:00:26]} 50. Kxb4 {[%emt 0:00:26]} Nxg3 {[%emt 0:00:05]} 51. Kc5 {[%emt 0:00:12]} Kf6 {[%emt 0:00:10]} 52. Kd4 {[%emt 0:00:05]} Kg5 {[%emt 0:00:47]} 53. Ke3 {[%emt 0:00:13]} Nf5+ {[%emt 0:00:50]} 54. Kf2 Kf4 {[%emt 0:00:21]} 55. Bf1 {[%emt 0:01:49]} Nd4 {[%emt 0:01:06]} 56. Ba6 {[%emt 0:00:19]} h5 {[%emt 0:00:36]} 57. Bc8 {[%emt 0:00:12]} Kg5 {[%emt 0:00:19]} 58. Kg3 {[%emt 0:00:18]} Ne2+ {[%emt 0:00:25]} 59. Kf3 {[%emt 0:00:08]} Nc3 {[%emt 0:00:25]} 60. Kg3 {[%emt 0:00:07]} Ne4+ {[%emt 0:00:34]} 61. Kf3 {[%emt 0:00:24]} Nd6 {[%emt 0:00:02]} 62. Bd7 {[%emt 0:00:07]} Kh4 {[%emt 0:00:31]} 63. Kg2 {[%emt 0:00:04]} g6 {[%emt 0:00:44]} 64. Kh2 {[%emt 0:00:03]} Nf5 {[%emt 0:00:45]} 65. Bc8 {[%emt 0:00:22]} Kg5 {[%emt 0:00:17]} 66. Kg2 {[%emt 0:00:03]} Kf4 {[%emt 0:00:05]} 67. Kf2 {[%emt 0:00:13]} Nh4 {[%emt 0:01:03]} 68. Bd7 {[%emt 0:00:04]} Nf3 {[%emt 0:00:09]} 69. Bc8 {[%emt 0:00:06]} Ne5 {[%emt 0:00:28]} 70. Be6 {[%emt 0:00:09]} Nf3 {[%emt 0:01:04]} 71. Bc8 {[%emt 0:00:28]} Nd4 {[%emt 0:00:44]} 72. Bd7 {[%emt 0:00:05]} Kg5 {[%emt 0:00:10]} 73. Bc8 {[%emt 0:00:13]} Kh4 {[%emt 0:00:08]} 74. Kg2 {[%emt 0:00:03]} Ne2 {[%emt 0:00:06]} 75. Bd7 {[%emt 0:00:09]} Nf4+ {[%emt 0:00:14]} 76. Kh2 {[%emt 0:00:01]} Ne2 {[%emt 0:00:53]} 77. Kg2 {[%emt 0:00:06]} Nd4 {[%emt 0:00:02]} 78. Bc8 {[%emt 0:00:10]} Kg5 {[%emt 0:00:07]} 79. Kg3 {[%emt 0:00:07]} h4+ {[%emt 0:00:38]} 80. Kf2 {[%emt 0:00:04]} Kf4 {[%emt 0:00:08]} 81. Bd7 {[%emt 0:00:07]} Nf5 {[%emt 0:00:36]} 82. Bc8 {[%emt 0:00:07]} Ng3 {[%emt 0:00:10]} 83. Bd7 {[%emt 0:00:32]} Ne4+ {[%emt 0:00:29]} 84. Kg2 {[%emt 0:00:03]} Ke3 {[%emt 0:00:09]} 85. Be8 {[%emt 0:00:09]} g5 {[%emt 0:00:11]} 86. Bb5 {[%emt 0:00:29]} Nf2 {[%emt 0:00:30]} 87. Bc6 {[%emt 0:00:14]} Ne4 {[%emt 0:00:40]} 88. Bb5 {[%emt 0:00:05]} Ng3 {[%emt 0:00:35]} 89. Ba6 {[%emt 0:00:11]} Nh5 {[%emt 0:00:03]} 90. Bb7 {[%emt 0:00:30]} Nf4+ {[%emt 0:00:05]} 91. Kh2 {[%emt 0:00:13]} Kf2 {[%emt 0:00:09]} 92. Bc8 {[%emt 0:01:44]} Ng6 {[%emt 0:00:17]} 93. Bd7 {[%emt 0:00:11]} Ne5 {[%emt 0:00:03]} 94. Bc8 {[%emt 0:00:07]} Nf3+ {[%emt 0:00:04]} 95. Kh1 {[%emt 0:00:03]} Kg3 {[%emt 0:00:05]} 96. Bd7 {[%emt 0:00:31]} Ne1 {[%emt 0:01:11]} 97. Bf5 {[%emt 0:00:14]} Ng2 {[%emt 0:00:08]} 98. Bg4 {[%emt 0:00:15]} Nf4 {[%emt 0:00:04]} 99. Bc8 {[%emt 0:00:02]} Nxh3 {[%emt 0:00:06]} 100. Bb7 {[%emt 0:00:02]} Nf2+ {[%emt 0:00:13]} 101. Kg1 {[%emt 0:00:03]} h3 0-1

[Event "SixDays Budapest IM-A 09-2024"]
[Site "Budapest"]
[Date "2024.09.26"]
[Round "5.2"]
[White "Krishna C R G"]
[Black "Wadifa, Ahmed"]
[Result "1-0"]
[ECO "E04"]
[WhiteElo "2425"]
[BlackElo "1988"]
[Annotator "TA"]
[PlyCount "63"]
[EventDate "2024.09.24"]
[EventType "tourn"]
[EventCountry "HUN"]
[SourceTitle "playchess.com"]
[Source "ChessBase"]
[SourceQuality "1"]
[TimeControl "5400+30"]

{[%evp 11,63,0,18,18,93,61,81,75,108,114,107,112,114,91,102,102,83,102,100,96,91,93,89,89,90,85,100,96,94,93,97,87,101,47,126,72,241,253,232,229,247,240,262,266,245,258,429,410,420,431,1100,806,1940,1894]} 1. d4 {[%emt 0:00:08]} d5 {[%emt 0:00:43][%cal Bd7d5,Bd5c4][%mdl 32]} 2. c4 {[%emt 0:00:06]} e6 {[%emt 0:00:06]} 3. Nf3 {[%emt 0:00:05]} Nf6 {[%emt 0:00:05]} 4. g3 {[%emt 0:00:05]} dxc4 {[%emt 0:00:04]} 5. Bg2 {[%emt 0:00:09]} Nc6 {[%emt 0:00:08]} 6. O-O {[%emt 0:00:38]} a6 {[%emt 0:01:20]} 7. e3 {[%emt 0:00:47][%cal Be2e3,Be3e4][%mdl 32]} Be7 {[%emt 0:01:32]} (7... Bd7 $11 {remains equal.}) 8. Nbd2 $1 $16 {[%emt 0:05:09][%cal Bb1d2,Bd2c4,Bc4e5,Be5c6][%mdl 32]} O-O {[%emt 0:03:28]} 9. Nxc4 {[%emt 0:01:22] White is better.} b5 {[%emt 0:01:29]} 10. Nfe5 {[%emt 0:09:41]} Nxe5 {[%emt 0:01:02]} 11. Nxe5 {[%emt 0:00:02]} (11. Bxa8 $2 Nxc4 (11... bxc4 $2 12. dxe5 Qxd1 13. Rxd1 $18) 12. Bh1 Nb6 $19) 11... Nd5 {[%emt 0:00:10]} 12. e4 {[%emt 0:00:14]} Nb6 {[%emt 0:00:53]} 13. Nc6 {[%emt 0:05:39] White is more active.} Qd7 {[%emt 0:00:53]} 14. Qc2 {[%emt 0:03:23]} Bb7 {[%emt 0:01:28]} 15. Na5 {[%emt 0:05:53]} Rab8 {[%emt 0:08:50]} 16. Nxb7 {[%emt 0:07:09]} Rxb7 {[%emt 0:00:08]} 17. Rd1 {[%emt 0:00:04]} Rd8 {[%emt 0:03:29]} 18. Bf4 $36 {[%emt 0:03:51][%mdl 2048] Keeping Black busy.} h6 {[%emt 0:17:38]} 19. b3 {[%emt 0:02:21]} Ba3 {[%emt 0:04:27]} 20. Rab1 {[%emt 0:03:24]} a5 {[%emt 0:04:36]} 21. Be3 {[%emt 0:05:28]} Rbb8 {[%emt 0:03:48]} 22. f4 {[%emt 0:02:43]} (22. Qd2 $16) 22... Rbc8 {[%emt 0:03:44] [#]} (22... Qe7 $14) 23. Bh3 $1 {[%emt 0:00:03][%cal Od4d5]} c5 $2 {[%emt 0:09:30] [#] Black cannot hold the game after this.} 24. d5 $1 $18 {[%emt 0:05:07] dxe6 would now be deadly.} ({Not} 24. dxc5 Qc6 $16) 24... Qe7 {[%emt 0:00:28]} 25. dxe6 {[%emt 0:00:18]} fxe6 {[%emt 0:00:03]} 26. Qe2 {[%emt 0:01:20]} Qe8 {[%emt 0:04:31]} 27. f5 {[%emt 0:06:22]} exf5 {[%emt 0:05:26]} 28. Bxf5 {[%emt 0:00:03]} Rxd1+ $2 {[%emt 0:00:10]} (28... Qc6 29. Qg4 (29. Bxc8 Rxc8 30. Bf2 Bb4 $18) 29... c4 30. Bxc8 Rxc8 31. Bxb6 Qxb6+ 32. Kh1 Rc5) 29. Rxd1 {[%emt 0:00:06]} ({Weaker is} 29. Qxd1 Rc6 $16) 29... Rc7 {[%emt 0:00:21] Black is weak on the light squares} 30. Qg4 {[%emt 0:04:49]} Kh8 {[%emt 0:03:21]} (30... Rc6 $142 31. e5 c4) 31. Qh4 {[%emt 0:00:58]} Nd7 {[%emt 0:04:14] [#]} 32. Bxh6 $1 {[%emt 0:01:00][%mdl 512] Weighted Error Value: White=0.05 (flawless) /Black=0.40.  Loses game:     	---       	Black=1      Mistake:       	White=1     	Black=4      Inaccurate:     	---       	Black=2      OK:         	White=10    	Black=6      Best:        	White=1     	Black=2      Strong:       	White=2     	---} 1-0

[Event "SixDays Budapest IM-A 09-2024"]
[Site "Budapest"]
[Date "2024.09.26"]
[Round "5.3"]
[White "Boyer, Mahel"]
[Black "Pacher, Milan"]
[Result "1-0"]
[ECO "A06"]
[WhiteElo "2489"]
[BlackElo "2343"]
[Annotator "TA"]
[PlyCount "78"]
[EventDate "2024.09.24"]
[EventType "tourn"]
[EventCountry "HUN"]
[SourceTitle "playchess.com"]
[Source "ChessBase"]
[SourceQuality "1"]
[TimeControl "5400+30"]

{[%evp 9,78,18,24,22,19,14,24,4,0,0,0,7,8,0,46,2,60,46,88,18,29,0,24,0,19,15,65,41,33,55,87,73,91,95,88,104,87,87,126,91,92,77,76,83,92,92,92,92,97,98,99,99,102,95,212,138,178,188,3418,3673,1916,1678,29990,29991,29991,29981,29996,29982,29982,29983,29989]} 1. Nf3 {[%emt 0:02:18]} d5 {[%emt 0:08:14]} 2. g3 {[%emt 0:00:14]} Bg4 {[%emt 0:00:07]} 3. Bg2 {[%emt 0:00:06]} e6 {[%emt 0:00:06]} 4. O-O {[%emt 0:00:54]} Nf6 {[%emt 0:00:05]} 5. h3 {[%emt 0:00:07]} Bh5 {[%emt 0:00:14] [#]} 6. c4 $1 {[%emt 0:00:43]} c6 {[%emt 0:00:26]} 7. d4 {[%emt 0:00:25][%cal Bd2d4,Bd4e5][%mdl 32]} Nbd7 {[%emt 0:00:46]} 8. Ne5 {[%emt 0:00:14] White has an edge.} Nxe5 {[%emt 0:06:09]} 9. dxe5 {[%emt 0:00:07]} Nd7 {[%emt 0:00:04]} 10. cxd5 {[%emt 0:06:57]} cxd5 {[%emt 0:00:03]} 11. f4 {[%emt 0:05:26]} Rc8 {[%emt 0:03:18]} (11... Bc5+ $11 {might be stronger.} 12. Kh2 Rc8) 12. Be3 {[%emt 0:02:49][%cal Og3g4] Threatening g4!} Bc5 {[%emt 0:05:13]} (12... Bg6 $11) 13. Bxc5 $14 {[%emt 0:00:58]} Nxc5 {[%emt 0:00:02] [#]} 14. Nc3 {[%emt 0:01:51]} ({Better is} 14. g4 $1 $16 {[%cal Rg4h5]} Bg6 15. f5) 14... Bg6 $11 {[%emt 0:10:23]} 15. Nb5 {[%emt 0:03:42] aiming for Nd6+.} O-O {[%emt 0:00:07]} 16. Nd6 {[%emt 0:00:40]} Rc6 {[%emt 0:01:38]} 17. Qd4 {[%emt 0:07:51]} Be4 {[%emt 0:01:07]} 18. Rfc1 {[%emt 0:09:54]} Bxg2 {[%emt 0:01:02]} 19. Kxg2 {[%emt 0:03:05]} (19. Rxc5 Rxc5 20. Qxc5 Bxh3 $17) 19... Qb6 {[%emt 0:00:06]} 20. b4 {[%emt 0:01:59] White has more active pieces.} Ne4 {[%emt 0:02:08]} 21. Qxb6 {[%emt 0:00:03]} Rxb6 {[%emt 0:00:04]} 22. Nxe4 {[%emt 0:00:11]} dxe4 $16 {[%emt 0:00:03][%mdl 4096] Endgame. KRR-KRR} 23. Rc4 {[%emt 0:00:20][%cal Oa2a4]} g6 {[%emt 0:00:50]} 24. Rxe4 {[%emt 0:19:59]} Rd8 {[%emt 0:04:08]} 25. Rc1 {[%emt 0:00:24]} Ra6 {[%emt 0:01:09]} 26. Rc2 $36 {[%emt 0:02:54][%mdl 2048] White is on the roll.} b5 {[%emt 0:01:13] [#]} 27. Re3 $1 {[%emt 0:01:49]} Ra4 {[%emt 0:00:20]} 28. a3 {[%emt 0:00:50]} h5 {[%emt 0:00:41]} 29. Rc5 {[%emt 0:00:36]} a6 {[%emt 0:01:17]} 30. Rec3 {[%emt 0:01:11]} Kg7 {[%emt 0:03:32]} 31. Rc7 {[%emt 0:02:39]} h4 {[%emt 0:02:13]} 32. Rb7 {[%emt 0:03:04]} ({Don't take} 32. gxh4 $6 a5) 32... hxg3 {[%emt 0:00:26]} 33. Kxg3 {[%emt 0:00:26]} ({Resist} 33. Rcc7 Rf8 $16) 33... Rd2 $2 {[%emt 0:03:54]} (33... a5) 34. Rcc7 $18 {[%emt 0:01:58] White threatens Kg4 and mate.} Rxa3+ {[%emt 0:00:12]} 35. Kg4 {[%emt 0:00:31]} Rxe2 {[%emt 0:00:55]} 36. Rxf7+ {[%emt 0:00:06] White mates.} Kg8 {[%emt 0:00:03]} 37. Rfd7 {[%emt 0:00:32][%cal Rd7d8]} Rg2+ {[%emt 0:00:22]} 38. Kh4 {[%emt 0:00:15][%cal Rb7b8]} g5+ {[%emt 0:00:04]} 39. fxg5 {[%emt 0:00:20][%cal Rb7b8]} Rf3 {[%emt 0:00:04] Weighted Error Value: White=0.16 (very precise) /Black=0.44.  Mistake:       	White=1     	Black=5      Inaccurate:     	White=3     	Black=3      OK:         	White=9     	Black=8      Best:        	White=2     	Black=1      Strong:       	White=1     	---} 1-0

[Event "SixDays Budapest IM-A 09-2024"]
[Site "Budapest"]
[Date "2024.09.26"]
[Round "5.4"]
[White "Ramsdal, Jens Albert"]
[Black "Pavan Karthikeya Varma Gunturi"]
[Result "1-0"]
[ECO "E32"]
[WhiteElo "2328"]
[BlackElo "2056"]
[Annotator "RC"]
[PlyCount "159"]
[EventDate "2024.09.24"]
[EventType "tourn"]
[EventCountry "HUN"]
[SourceTitle "playchess.com"]
[Source "ChessBase"]
[SourceQuality "1"]
[TimeControl "5400+30"]

1. d4 {[%emt 0:03:55]} Nf6 {[%emt 0:00:10]} 2. c4 {[%emt 0:00:11]} e6 {[%emt 0:00:19]} 3. Nc3 {[%emt 0:00:11]} Bb4 {[%emt 0:00:30]} 4. Qc2 {[%emt 0:00:07]} O-O {[%emt 0:06:28]} 5. Nf3 {[%emt 0:00:06]} d6 {[%emt 0:06:22]} 6. Bd2 {[%emt 0:00:46]} Nc6 {[%emt 0:04:48]} 7. a3 {[%emt 0:00:43]} Bxc3 {[%emt 0:01:09]} 8. Bxc3 {[%emt 0:00:03]} d5 {[%emt 0:02:20]} 9. e3 {[%emt 0:04:05]} Ne4 {[%emt 0:02:04]} 10. Bd3 {[%emt 0:00:31]} Nxc3 {[%emt 0:01:51]} 11. Qxc3 {[%emt 0:00:27]} Ne7 {[%emt 0:03:09]} 12. O-O {[%emt 0:02:39]} Bd7 {[%emt 0:03:36]} 13. Rac1 {[%emt 0:01:03]} Rc8 {[%emt 0:01:55]} 14. Qb3 {[%emt 0:03:28]} Bc6 {[%emt 0:07:20]} 15. Ne5 {[%emt 0:03:04]} dxc4 {[%emt 0:03:48]} 16. Bxc4 {[%emt 0:00:04]} Bd5 {[%emt 0:03:31]} 17. Bxd5 {[%emt 0:06:32]} Qxd5 {[%emt 0:00:14]} 18. Qa4 {[%emt 0:00:51]} a6 {[%emt 0:11:00]} 19. Rc5 {[%emt 0:03:42]} Qd6 {[%emt 0:03:59]} 20. Rfc1 {[%emt 0:10:17]} c6 {[%emt 0:02:00]} 21. b4 {[%emt 0:01:53]} Nd5 {[%emt 0:01:25]} 22. Qb3 {[%emt 0:01:11]} Rc7 {[%emt 0:02:52]} 23. Qd1 {[%emt 0:05:31]} Rfc8 {[%emt 0:03:09]} 24. Qg4 {[%emt 0:00:08]} b6 {[%emt 0:03:02]} 25. R5c2 {[%emt 0:04:11]} c5 {[%emt 0:04:13]} 26. Qe2 {[%emt 0:07:38]} a5 {[%emt 0:08:14]} 27. Qa6 {[%emt 0:14:40]} axb4 {[%emt 0:03:58]} 28. Rxc5 {[%emt 0:00:49]} Rxc5 {[%emt 0:06:24]} 29. Qxc8+ {[%emt 0:01:17]} Rxc8 {[%emt 0:00:05]} 30. Rxc8+ {[%emt 0:00:05]} Qf8 {[%emt 0:00:09]} 31. Rxf8+ {[%emt 0:00:10]} Kxf8 {[%emt 0:00:04]} 32. axb4 {[%emt 0:00:07]} Nxb4 {[%emt 0:00:23]} 33. Nd7+ {[%emt 0:00:07]} Ke7 {[%emt 0:00:23]} 34. Nxb6 {[%emt 0:00:02]} f6 {[%emt 0:01:07]} 35. Nc4 {[%emt 0:00:50]} Kd7 {[%emt 0:01:01]} 36. Kf1 {[%emt 0:00:39]} Kc6 {[%emt 0:00:26]} 37. Ke2 {[%emt 0:00:29]} Kd5 {[%emt 0:00:28]} 38. Nb6+ {[%emt 0:00:57]} Kc6 {[%emt 0:00:37]} 39. Na4 {[%emt 0:01:03]} Kd5 {[%emt 0:00:27]} 40. Nc3+ {[%emt 0:00:15]} Kc4 {[%emt 0:00:27]} 41. Ne4 {[%emt 0:00:12]} Kd5 {[%emt 0:00:24]} 42. Nc3+ {[%emt 0:03:04]} Kc4 {[%emt 0:00:25]} 43. Kd2 {[%emt 0:01:15]} Nc6 {[%emt 0:02:25]} 44. f3 {[%emt 0:03:40]} Na5 {[%emt 0:01:03]} 45. Ne4 {[%emt 0:00:49]} Nb7 {[%emt 0:00:49]} 46. Ng3 {[%emt 0:00:27]} Nd6 {[%emt 0:00:27]} 47. Ne4 {[%emt 0:03:07]} Nb7 48. h4 {[%emt 0:01:46]} Kd5 {[%emt 0:01:56]} 49. Kd3 {[%emt 0:00:18]} Na5 {[%emt 0:00:26]} 50. Ng3 {[%emt 0:00:32]} Nc6 {[%emt 0:01:15]} 51. Nh5 {[%emt 0:00:44]} e5 {[%emt 0:00:25]} 52. e4+ {[%emt 0:01:24]} Kd6 {[%emt 0:00:06]} 53. d5 {[%emt 0:00:14]} Ne7 {[%emt 0:00:33]} 54. Nxg7 {[%emt 0:00:15]} Ng6 {[%emt 0:00:24]} 55. g3 {[%emt 0:00:16]} Nf8 {[%emt 0:00:17]} 56. Nf5+ {[%emt 0:00:22]} Kc7 {[%emt 0:00:20]} 57. Ng7 {[%emt 0:05:01]} Kd6 {[%emt 0:00:17]} 58. f4 {[%emt 0:00:29]} exf4 {[%emt 0:00:18]} 59. gxf4 {[%emt 0:00:02]} Ng6 {[%emt 0:00:13]} 60. Nf5+ {[%emt 0:00:16]} Kd7 {[%emt 0:00:18]} 61. Ke3 {[%emt 0:00:07]} h5 {[%emt 0:00:39]} 62. Kf3 {[%emt 0:00:17]} Kc7 {[%emt 0:00:30]} 63. Kg3 {[%emt 0:00:10]} Kd7 {[%emt 0:00:08]} 64. Ng7 {[%emt 0:00:34]} Kd6 {[%emt 0:00:19]} 65. Nxh5 {[%emt 0:01:16]} f5 {[%emt 0:00:11]} 66. exf5 {[%emt 0:00:33]} Ne7 {[%emt 0:00:06]} 67. Kg4 {[%emt 0:00:22]} Nxd5 {[%emt 0:00:11]} 68. Kg5 {[%emt 0:00:57]} Ke7 {[%emt 0:00:08]} 69. Ng7 {[%emt 0:02:25]} Kf7 {[%emt 0:00:14]} 70. Nh5 {[%emt 0:01:02]} Nc3 {[%emt 0:00:40]} 71. Ng3 {[%emt 0:00:31]} Nd5 {[%emt 0:00:28]} 72. Ne4 {[%emt 0:00:12]} Kg7 {[%emt 0:00:14]} 73. h5 {[%emt 0:00:06]} Nc7 {[%emt 0:00:08]} 74. h6+ {[%emt 0:00:13]} Kh7 {[%emt 0:00:08]} 75. Nf6+ {[%emt 0:01:11]} Kh8 {[%emt 0:00:07]} 76. Ng4 {[%emt 0:00:11]} Ne8 {[%emt 0:00:06]} 77. Kg6 {[%emt 0:00:12]} Nd6 {[%emt 0:00:20]} 78. Ne5 {[%emt 0:00:12]} Kg8 {[%emt 0:00:13]} 79. h7+ {[%emt 0:00:06]} Kh8 {[%emt 0:00:06]} 80. Nf7+ {[%emt 0:00:06]} 1-0

[Event "SixDays Budapest IM-A 09-2024"]
[Site "Budapest"]
[Date "2024.09.26"]
[Round "5.5"]
[White "Kwon, Sehyun"]
[Black "Bashirov, Kemal"]
[Result "0-1"]
[ECO "B51"]
[WhiteElo "2248"]
[BlackElo "2328"]
[Annotator "RC"]
[PlyCount "88"]
[EventDate "2024.09.24"]
[EventType "tourn"]
[EventCountry "HUN"]
[SourceTitle "playchess.com"]
[Source "ChessBase"]
[SourceQuality "1"]
[TimeControl "5400+30"]

1. e4 {[%emt 0:04:07]} c5 {[%emt 0:00:05]} 2. Nf3 {[%emt 0:00:07]} d6 {[%emt 0:00:04]} 3. Bb5+ {[%emt 0:00:05]} Nd7 {[%emt 0:00:04]} 4. c3 {[%emt 0:00:50]} Ngf6 {[%emt 0:00:43]} 5. Qe2 {[%emt 0:00:07]} a6 {[%emt 0:00:17]} 6. Ba4 {[%emt 0:00:11]} b5 {[%emt 0:01:49]} 7. Bc2 {[%emt 0:00:09]} e5 {[%emt 0:06:54]} 8. d4 {[%emt 0:03:11]} Be7 {[%emt 0:01:35]} 9. O-O {[%emt 0:01:00]} O-O {[%emt 0:01:06]} 10. Rd1 {[%emt 0:03:44]} Qc7 {[%emt 0:01:03]} 11. dxe5 {[%emt 0:00:50]} dxe5 {[%emt 0:02:12]} 12. c4 {[%emt 0:02:21]} b4 {[%emt 0:15:00]} 13. Nbd2 {[%emt 0:00:46]} Nb8 {[%emt 0:05:13]} 14. Nf1 {[%emt 0:13:37]} Nc6 {[%emt 0:08:41]} 15. Ne3 {[%emt 0:18:54]} Nd4 {[%emt 0:06:07]} 16. Nxd4 {[%emt 0:00:26]} cxd4 {[%emt 0:00:03]} 17. Nd5 {[%emt 0:02:04]} Nxd5 {[%emt 0:01:51]} 18. cxd5 {[%emt 0:01:04]} Bb7 {[%emt 0:15:23]} 19. Bd3 {[%emt 0:04:55]} f5 {[%emt 0:02:30]} 20. f3 {[%emt 0:17:32]} f4 {[%emt 0:01:18]} 21. g3 {[%emt 0:00:58]} g5 {[%emt 0:05:16]} 22. gxf4 {[%emt 0:02:20]} gxf4 {[%emt 0:00:03]} 23. Kh1 {[%emt 0:00:31]} Kh8 {[%emt 0:00:15]} 24. Rg1 {[%emt 0:00:31]} Rg8 {[%emt 0:00:28]} 25. Bd2 {[%emt 0:01:11]} Qd6 {[%emt 0:01:01]} 26. Rxg8+ {[%emt 0:04:14]} Rxg8 {[%emt 0:00:03]} 27. Rg1 {[%emt 0:00:21]} a5 {[%emt 0:01:11]} 28. Rxg8+ {[%emt 0:01:41]} Kxg8 {[%emt 0:00:07]} 29. Qg2+ {[%emt 0:00:17]} Kh8 {[%emt 0:00:56]} 30. Qh3 {[%emt 0:00:15]} Ba6 {[%emt 0:00:11]} 31. Bc4 {[%emt 0:04:46]} Bf8 {[%emt 0:06:37]} 32. Qf1 {[%emt 0:01:18]} Bc8 {[%emt 0:00:36]} 33. Bb5 {[%emt 0:01:37]} Qh6 {[%emt 0:00:32]} 34. Qc1 {[%emt 0:02:07]} Qh3 {[%emt 0:02:41]} 35. Qf1 {[%emt 0:00:28]} Qh5 {[%emt 0:01:04]} 36. Qf2 {[%emt 0:01:38]} Be7 {[%emt 0:05:37]} 37. Be1 {[%emt 0:00:50]} Bh3 {[%emt 0:00:30]} 38. Bf1 {[%emt 0:04:30]} Bh4 {[%emt 0:00:39]} 39. Qe2 {[%emt 0:03:47]} Bxf1 {[%emt 0:00:16]} 40. Qxf1 {[%emt 0:00:06]} Bxe1 {[%emt 0:00:03]} 41. Kg2 {[%emt 0:01:02]} Qg6+ {[%emt 0:01:41]} 42. Kh1 {[%emt 0:00:05]} Bh4 {[%emt 0:00:16]} 43. Qb5 {[%emt 0:00:23]} h6 {[%emt 0:05:38]} 44. d6 {[%emt 0:01:01]} Qxd6 {[%emt 0:00:28]} 0-1